Cogmind - Beta 15 @@@ ROGUE MODE // 2025.08.09 @ 16:38:41 Player: ilja Result: Destroyed by S-27 Virus with Autogun Performance ------------- Evolutions (3) 1500 Regions Visited (7) 1400 Robots Destroyed (0) 0 Value Destroyed (0) 0 Prototype IDs (10) 200 Alien Tech Used (0) 0 Bonus (1134) 1134 TOTAL SCORE: 4234 Bonus ------- Pacifist 834 Met Data Miner 300 Cogmind --------- Core Integrity 0/700 Matter 275/300 Energy 98/100 System Corruption 7% Temperature Cool (0) Movement Core (50) Location -6/Proximity Caves Parts ------- > --- POWER (1) -------- (None) > --- PROPULSION (2) --- (None) > --- UTILITY (8) ------ Improved Terrain Scan Processor Advanced Targeting Computer > --- WEAPON (2) ------- (None) > --- INVENTORY (5) ---- Thermal Generator Small Storage Unit Enhanced Optical Array Assault Cannon Remote Datajack Peak State ------------ > --- POWER ------------ (None) > --- PROPULSION ------- (None) > --- UTILITY ---------- Advanced Terrain Scan Processor Seismic Detector Advanced Targeting Computer > --- WEAPON ----------- Improved Datajack Remote Datajack > --- INVENTORY -------- Thermal Generator Small Storage Unit Assault Cannon [Rating: 15] Favorites ----------- Power None Propulsion None Utility Advanced Targeting Computer Device Seismic Detector Storage Small Storage Unit Processor Advanced Targeting Computer Weapon Improved Datajack Special Weapon Remote Datajack Special Melee Weapon Improved Datajack Build | -11 -10 -9 -8 -7 -7 -7 -6 ------- Run | Yrd Mat Mat Mat Fac Low Dat Pro Slots Evolved 6 | . . 2 2 2 . . . Power . | . . . . . . . . Propulsion . | . . . . . . . . Utility 6 | . . 2 2 2 . . . Weapon . | . . . . . . . . Parts Attached 7 | 1 . . 2 2 1 . 1 Power . | . . . . . . . . Engine . | . . . . . . . . Core . | . . . . . . . . Reactor . | . . . . . . . . Propulsion . | . . . . . . . . Treads . | . . . . . . . . Leg . | . . . . . . . . Wheel . | . . . . . . . . Hover . | . . . . . . . . Flight . | . . . . . . . . Utility 5 | 1 . . 2 1 . . 1 Device 1 | . . . 1 . . . . Storage 1 | 1 . . . . . . . Processor 3 | . . . 1 1 . . 1 Hackware . | . . . . . . . . Protection . | . . . . . . . . Artifact . | . . . . . . . . Weapon 2 | . . . . 1 1 . . Energy Gun . | . . . . . . . . Energy Cannon . | . . . . . . . . Ballistic Gun . | . . . . . . . . Ballistic Cannon . | . . . . . . . . Launcher . | . . . . . . . . Special Weapon 1 | . . . . . 1 . . Impact Weapon . | . . . . . . . . Slashing Weapon . | . . . . . . . . Piercing Weapon . | . . . . . . . . Special Melee Weapon 1 | . . . . 1 . . . Unidentified Prototypes . | . . . . . . . . Parts Lost 3 | . . . . . 3 . . Power . | . . . . . . . . Propulsion . | . . . . . . . . Utility 2 | . . . . . 2 . . Weapon 1 | . . . . . 1 . . Highest Loss Streak 3 | . . . . . 3 . . To Critical Strikes . | . . . . . . . . Average Backups 2 | . . . 1 2 3 4 4 Power . | . . . . . . . . Propulsion . | . . . . . . . . Utility 1 | . . . 1 1 2 2 2 Weapon . | . . . . 1 1 1 1 Tool/Special . | . . . . . . . . Unused Backups 3 | . . . . . . . 3 Power . | . . . . . . . . Propulsion . | . . . . . . . . Utility 2 | . . . . . . . 2 Weapon 1 | . . . . . . . 1 Tool/Special . | . . . . . . . . Average Slot Usage (%) 17 | . 14 11 9 25 25 7 14 Device 3 | . . . 3 7 5 . . Storage 2 | . 14 11 . . . . . Processor 9 | . . . 5 12 13 7 14 Special Melee Weapon 2 | . . . . 5 5 . . Peak Build Rating 15 | 1 1 1 4 11 15 4 7 Average Rating 6 | . 1 1 2 9 10 4 6 On Entrance 3 | . 1 1 1 4 11 4 4 Naked Turns 49 | . . . 49 . . . . Heaviest Build 5 | 5 5 5 1 2 2 . . Greatest Support 3 | 3 3 3 3 3 3 3 3 Greatest Overweight (x) 1 | 1 1 1 . . . . . Average Overweight (x) . | . 1 1 . . . . . Largest Inventory Capacity 8 | 8 8 8 5 5 5 5 5 Average Capacity 5 | 7 8 8 5 5 5 5 5 Most Carried 5 | . . . 2 3 4 4 5 Average Carried 2 | . . . 1 2 3 4 4 Final Capacity 8 | 8 8 8 5 5 5 5 5 Final Carried 5 | . . . 2 3 4 4 5 Class Distribution -------------------- 100% | Mutant Dominant Class ---------------- Mutant | -10/Materials Mutant | -9/Materials Mutant | -8/Materials Mutant | -7/Factory Mutant | -7/Lower Caves Mutant | -7/Data Miner Mutant | -6/Proximity Caves Resources | -11 -10 -9 -8 -7 -7 -7 -6 ----------- Run | Yrd Mat Mat Mat Fac Low Dat Pro Matter Collected 257 | 194 . . . . 57 . 6 Remotely . | . . . . . . . . Salvage Created . | . . . . . . . . Parts . | . . . . . . . . Haulers Intercepted . | . . . . . . . . Recyclers Shooed . | . . . . . . . . Parts Field Recycled . | . . . . . . . . Retrieved Matter . | . . . . . . . . Parts Self-Destructed . | . . . . . . . . Prevented . | . . . . . . . . Kills | -11 -10 -9 -8 -7 -7 -7 -6 ------- Run | Yrd Mat Mat Mat Fac Low Dat Pro Combat Hostiles Destroyed . | . . . . . . . . Classes Destroyed . | . . . . . . . . Best Kill Streak . | . . . . . . . . Combat Bots Only . | . . . . . . . . Max Kills in Single Turn . | . . . . . . . . Gunslinging . | . . . . . . . . Exploded . | . . . . . . . . Melee . | . . . . . . . . Uniques/NPCs Destroyed . | . . . . . . . . Combat | -11 -10 -9 -8 -7 -7 -7 -6 -------- Run | Yrd Mat Mat Mat Fac Low Dat Pro Hostile Shots Fired 111 | . . 22 2 . 19 . 68 Missed 44 | . . 7 1 . 7 . 29 Hits 67 | . . 15 1 . 12 . 39 Melee 1 | . . . . . 1 . . Projectile 66 | . . 15 1 . 11 . 39 Critical Strikes 2 | . . . . . 2 . . Damage Taken 1030 | . . 203 14 . 225 . 588 Core 892 | . . 168 14 . 130 . 580 Absorbed by Shields . | . . . . . . . . Core Remaining (%) 88 | 100 100 58 97 . . . . Volleys Fired . | . . . . . . . . Largest . | . . . . . . . . Hottest . | . . . . . . . . Shots Fired . | . . . . . . . . Gun . | . . . . . . . . Cannon . | . . . . . . . . Launcher . | . . . . . . . . Special . | . . . . . . . . Kinetic . | . . . . . . . . Thermal . | . . . . . . . . Explosive . | . . . . . . . . Electromagnetic . | . . . . . . . . Robot Hit Streak . | . . . . . . . . Robot Miss Streak . | . . . . . . . . Penetration Max . | . . . . . . . . Secondary Targets . | . . . . . . . . Shots Hit Robots 6 | . . . . . 6 . . Core Hits 3 | . . . . . 2 . 1 Critical Kills . | . . . . . . . . Critical Parts Destroyed . | . . . . . . . . Critical Strikes . | . . . . . . . . Melee Attacks 6 | . . . . . 6 . . Impact . | . . . . . . . . Slashing . | . . . . . . . . Piercing . | . . . . . . . . Sneak Attacks 2 | . . . . . 2 . . Combat Hostiles . | . . . . . . . . Follow-up Attacks . | . . . . . . . . Damage Inflicted 36 | . . . . . 19 . 17 Guns . | . . . . . . . . Cannons . | . . . . . . . . Explosions . | . . . . . . . . Melee . | . . . . . . . . Ramming 36 | . . . . . 19 . 17 Kinetic . | . . . . . . . . Thermal . | . . . . . . . . Explosive . | . . . . . . . . Electromagnetic . | . . . . . . . . Impact . | . . . . . . . . Slashing . | . . . . . . . . Piercing . | . . . . . . . . Highest Corruption 7 | . . . . . 7 7 7 Average Corruption 7 | . . . . . 7 7 7 Corruption Purged . | . . . . . . . . Corruption Blocked . | . . . . . . . . Effects 13 | . . . . . 3 2 8 Message Errors 4 | . . . . . 1 1 2 Matter Fused 4 | . . . . . . . 4 Heat Flow Errors 2 | . . . . . 1 1 . Energy Discharges 2 | . . . . . 1 . 1 Data Loss (minor) 1 | . . . . . . . 1 Overload Shots . | . . . . . . . . Overflow Damage . | . . . . . . . . Projectiles . | . . . . . . . . Explosions . | . . . . . . . . Melee . | . . . . . . . . Knockbacks . | . . . . . . . . Impact . | . . . . . . . . Kinetic . | . . . . . . . . Secondary . | . . . . . . . . Self-Inflicted Damage 16 | . . . . . 8 . 8 Shots . | . . . . . . . . Rammed 10 | . . 1 . . 7 . 2 Targets Rammed 10 | . . 1 . . 7 . 2 Kicked . | . . . . . . . . Crushed . | . . . . . . . . Highest Temperature 97 | . . . . . 77 97 . Average Temperature 53 | . . . . . 43 63 . Received Heat Transfer 270 | . . 72 9 . 135 . 54 Siege Activations . | . . . . . . . . Martial Activations . | . . . . . . . . Shielding Activations . | . . . . . . . . Robots Disrupted . | . . . . . . . . Combat Hostiles . | . . . . . . . . Robots Corrupted . | . . . . . . . . Combat Hostiles . | . . . . . . . . Parts Fried . | . . . . . . . . Impact Corruptions . | . . . . . . . . Robots Melted . | . . . . . . . . Combat Hostiles . | . . . . . . . . Parts Melted . | . . . . . . . . Heat Transferred . | . . . . . . . . Parts Sabotaged . | . . . . . . . . Parts Stolen . | . . . . . . . . Parts Stripped . | . . . . . . . . Power Chain Reactions . | . . . . . . . . Alert | -11 -10 -9 -8 -7 -7 -7 -6 ------- Run | Yrd Mat Mat Mat Fac Low Dat Pro Maximum Alert Level . | . . . . . . . . Low Security (%) 100 | 100 100 100 100 100 . . . Level 1 . | . . . . . . . . Level 2 . | . . . . . . . . Level 3 . | . . . . . . . . Level 4 . | . . . . . . . . Level 5 . | . . . . . . . . High Security . | . . . . . . . . Max Security . | . . . . . . . . Peak Influence 14 | . . . 14 . . . . Initial . | . . . . . . . . Average . | . . . . . . . . Influence Increases 139 | . . . 19 . 120 . . Successful Hack 19 | . . . 19 . . . . Lose Combat Pursuer 120 | . . . . . 120 . . Influence Decreases 139 | . . . 19 . 100 20 . Entered New Map 20 | . . . . . . 20 . Time Decay 114 | . . . 19 . 95 . . Lost Part 5 | . . . . . 5 . . Squads Dispatched 2 | . . 1 1 . . . . Investigation 1 | . . . 1 . . . . Extermination . | . . . . . . . . Reinforcement 1 | . . 1 . . . . . Assault . | . . . . . . . . Garrison . | . . . . . . . . Intercept . | . . . . . . . . Searches Triggered . | . . . . . . . . Construction Impeded . | . . . . . . . . Haulers Reinforced . | . . . . . . . . Active Scanning Responses . | . . . . . . . . Cargo Convoy Interrupts . | . . . . . . . . Stealth | -11 -10 -9 -8 -7 -7 -7 -6 --------- Run | Yrd Mat Mat Mat Fac Low Dat Pro Distress Signals 1 | . . . 1 . . . . Communications Jammed . | . . . . . . . . Distress Signals . | . . . . . . . . Times Spotted 27 | . 1 5 3 . 9 . 9 Peak Tracking Total 10 | . 1 4 7 . 3 . 10 Tactical Retreats 5 | . . . . . 5 . . Traps | -11 -10 -9 -8 -7 -7 -7 -6 ------- Run | Yrd Mat Mat Mat Fac Low Dat Pro Traps Triggered . | . . . . . . . . Indirectly . | . . . . . . . . Trap Hack Attempts . | . . . . . . . . Triggered . | . . . . . . . . Disarmed . | . . . . . . . . Reprogrammed . | . . . . . . . . Reused . | . . . . . . . . Traps Extracted . | . . . . . . . . Installed . | . . . . . . . . Triggered . | . . . . . . . . Machines | -11 -10 -9 -8 -7 -7 -7 -6 ---------- Run | Yrd Mat Mat Mat Fac Low Dat Pro Machines Disabled . | . . . . . . . . Max in Single Turn . | . . . . . . . . Machines Repaired . | . . . . . . . . Machines Dismantled . | . . . . . . . . Machines Sabotaged . | . . . . . . . . Overloaded Fab Kills . | . . . . . . . . Hacking | -11 -10 -9 -8 -7 -7 -7 -6 --------- Run | Yrd Mat Mat Mat Fac Low Dat Pro Machines Accessed 7 | . 1 . 2 . . 4 . Terminals 3 | . 1 . 2 . . . . Fabricators . | . . . . . . . . Repair Stations . | . . . . . . . . Recycling Units . | . . . . . . . . Scanalyzers . | . . . . . . . . Garrison Access . | . . . . . . . . Total Hacks 41 | . 2 . 5 . . 34 . Successful 39 | . 1 . 4 . . 34 . Failed 2 | . 1 . 1 . . . . Catastrophic . | . . . . . . . . Database Lockouts . | . . . . . . . . Manual 4 | . 2 . 1 . . 1 . Terminals 7 | . 2 . 5 . . . . Fabricators . | . . . . . . . . Repair Stations . | . . . . . . . . Recycling Units . | . . . . . . . . Scanalyzers . | . . . . . . . . Garrison Access . | . . . . . . . . Terminal Hacks 37 | . . . 3 . . 34 . Record 13 | . . . 2 . . 11 . Part Schematic 13 | . . . . . . 13 . Robot Schematic 7 | . . . . . . 7 . Prototype ID Bank 3 | . . . . . . 3 . Alert Level 1 | . . . 1 . . . . Fabricator Hacks . | . . . . . . . . Repair Station Hacks . | . . . . . . . . Recycling Unit Hacks . | . . . . . . . . Scanalyzer . | . . . . . . . . Garrison Access Hacks . | . . . . . . . . Unauthorized Hacks 2 | . 1 . 1 . . . . Terminals 2 | . 1 . 1 . . . . Botnet 2 | . 1 . 1 . . . . Fabricators . | . . . . . . . . Repair Stations . | . . . . . . . . Recycling Units . | . . . . . . . . Scanalyzers . | . . . . . . . . Garrison Access . | . . . . . . . . Data Cores Recovered . | . . . . . . . . Used . | . . . . . . . . Hacking Detections 2 | . . . 2 . . . . Full Trace Events 1 | . . . 1 . . . . Feedback Events . | . . . . . . . . Feedback Blocked . | . . . . . . . . Robot Schematics Acquired 7 | . . . . . . 7 . Robots Built . | . . . . . . . . Authchips . | . . . . . . . . Time . | . . . . . . . . Total Robot Build Rating . | . . . . . . . . Part Schematics Acquired 13 | . . . . . . 13 . Parts Built . | . . . . . . . . Authchips . | . . . . . . . . Time . | . . . . . . . . Total Part Build Rating . | . . . . . . . . Parts Repaired . | . . . . . . . . Time . | . . . . . . . . Parts Recycled . | . . . . . . . . Recycled Matter . | . . . . . . . . Retrieved Matter . | . . . . . . . . Retrieved Components . | . . . . . . . . Parts Scanalyzed . | . . . . . . . . Part Schematics Acquired . | . . . . . . . . Parts Damaged . | . . . . . . . . Bothacking | -11 -10 -9 -8 -7 -7 -7 -6 ------------ Run | Yrd Mat Mat Mat Fac Low Dat Pro Used RIF Installer . | . . . . . . . . Robots Hacked 1 | . . . . . 1 . . Non-combat . | . . . . . . . . Combat 1 | . . . . . 1 . . Robot Hacks Applied 1 | . . . . . 1 . . parse_system 1 | . . . . . 1 . . Relay Couplers Released . | . . . . . . . . Fabnet Peak Effective % . | . . . . . . . . Robots Rewired . | . . . . . . . . Allies Hacked . | . . . . . . . . Hacks Repelled . | . . . . . . . . Allies | -11 -10 -9 -8 -7 -7 -7 -6 -------- Run | Yrd Mat Mat Mat Fac Low Dat Pro Total Allies 1 | . . . . . . . 1 Largest Group 1 | . . . . . . . 1 Highest-Rated Group 96 | . . . . . . . 96 Highest-Rated Ally 96 | . . . . . . . 96 Total Orders . | . . . . . . . . Ally Attacks 7 | . . . . . . . 7 Total Damage 297 | . . . . . . . 297 Kills . | . . . . . . . . Allies Corrupted . | . . . . . . . . Allies Melted . | . . . . . . . . Intel | -11 -10 -9 -8 -7 -7 -7 -6 ------- Run | Yrd Mat Mat Mat Fac Low Dat Pro Active Infowar (turns) 447 | . . . 63 84 300 . . Seismic 447 | . . . 63 84 300 . . Robot Analysis Total . | . . . . . . . . Derelict Logs Recovered 2 | . . . . . . . 2 Drone Launches . | . . . . . . . . Drone Recoveries . | . . . . . . . . Exploration | -11 -10 -9 -8 -7 -7 -7 -6 ------------- Run | Yrd Mat Mat Mat Fac Low Dat Pro Turns Passed 1106 | 30 74 160 146 84 370 61 181 Spaces Moved 1884 | 31 75 156 282 160 706 121 353 Core 1884 | 31 75 156 282 160 706 121 353 Treads . | . . . . . . . . Legs . | . . . . . . . . Wheels . | . . . . . . . . Hover . | . . . . . . . . Flight . | . . . . . . . . Fastest Speed 50 | 50 100 100 50 50 50 50 50 Average Speed 56 | 93 100 100 50 50 50 50 50 Slowest Speed 100 | 100 100 100 50 50 50 50 50 Overloaded Moves . | . . . . . . . . Propulsion Burnouts . | . . . . . . . . Robots Hopped . | . . . . . . . . Potential Cave-ins . | . . . . . . . . Cave-ins Triggered . | . . . . . . . . Exploration Rate (%) 27 | 3 14 16 21 3 59 75 27 Regions Visited 7 Branch Regions 3 Pre-discovered Areas 1 | . . . . . . 1 . Known Exits Taken . | . . . . . . . . Unknown Exits Taken 7 | 1 1 1 1 1 1 1 . Scrap Searched 3 | . . . . . 1 . 2 Spaces Dug . | . . . . . . . . Terrain Destroyed . | . . . . . . . . Melee . | . . . . . . . . Projectile . | . . . . . . . . AOE . | . . . . . . . . Terrain Rammed . | . . . . . . . . Walls Destroyed . | . . . . . . . . Machines Disabled . | . . . . . . . . Actions | -11 -10 -9 -8 -7 -7 -7 -6 --------- Run | Yrd Mat Mat Mat Fac Low Dat Pro Total 1911 | 31 74 160 285 162 722 120 357 Wait 4 | . . 4 . . . . . Move 1877 | 30 74 155 281 159 705 120 353 Hop . | . . . . . . . . Pick Up 3 | . . . 1 1 . . 1 Fast Attach 8 | 1 . . 2 2 2 . 1 Attach . | . . . . . . . . Detach 2 | . . . 1 . 1 . . Swap . | . . . . . . . . Drop 1 | . . . . . 1 . . Fire . | . . . . . . . . Melee 6 | . . . . . 6 . . Ram 10 | . . 1 . . 7 . 2 Kick . | . . . . . . . . Crush . | . . . . . . . . Escape Stasis . | . . . . . . . . Rewire . | . . . . . . . . Trap . | . . . . . . . . Miscellaneous . | . . . . . . . . Route ------- -11/Scrapyard -10/Materials -9/Materials -8/Materials -7/Factory -7/Lower Caves -7/Data Miner -6/Proximity Caves History --------- Turn | Location | Event 6 | -11/Scrapyard | Discovered new exit (range 15) 31 | -11/Scrapyard | Entered Materials 89 | -10/Materials | Discovered new exit (range 16) 105 | -10/Materials | Entered another Materials area 105 | -9/Materials | Evolved 2 slots: Utility x2 256 | -9/Materials | Discovered new exit (range 8) 265 | -9/Materials | Entered another Materials area 265 | -8/Materials | Evolved 2 slots: Utility x2 305 | -8/Materials | Build established: Mutant 408 | -8/Materials | Discovered new exit (range 4) 411 | -8/Materials | Entered Factory 411 | -7/Factory | Evolved 2 slots: Utility x2 470 | -7/Factory | Discovered new exit (range 8) 495 | -7/Factory | Entered Lower Caves 603 | -7/Lower Caves | Encountered a Warlord checkpoint 832 | -7/Lower Caves | Lost 3 parts (2u1w) 861 | -7/Lower Caves | A Derelict revealed a hidden shortcut to meet someone special 865 | -7/Lower Caves | Entered Data Miner 865 | -7/Data Miner | Discovered new exit (range 6) 875 | -7/Data Miner | Met Data Miner 894 | -7/Data Miner | Acquired the access code to Warlord's prototype stash 894 | -7/Data Miner | Learned location of Section 7 (-3) 902 | -7/Data Miner | Received God Mode back door access code from Data Miner 926 | -7/Data Miner | Entered Proximity Caves 929 | -6/Proximity Caves | Learned Factory stockpile data 940 | -6/Proximity Caves | Learned Factory garrison access intel 986 | -6/Proximity Caves | Spotted B-75 Beast 1043 | -6/Proximity Caves | Core integrity fell below 50% 1103 | -6/Proximity Caves | Core integrity fell below 20% 1106 | -6/Proximity Caves | Attracted the attention of an 0b10 checkpoint 1107 | -6/Proximity Caves | Destroyed by S-27 Virus with Autogun Last Messages --------------- 01035_ System corrupted: Matter fused (-6). 01037_ Knocked back. 01037_ Acquired 3 matter. 01059_ System corrupted: Component data lost. 01060_ C-30 ARC bursts open, deploying its payload. 01060_ H-66 Slayer unfolds itself. 01060_ Slug penetrates Earth. 01077_ Searching scrap... 01077_ Found Imp. Target Analyzer. 01077_ Found Enh. Optical Array. 01077_ Found Com. Matter Pod. 01077_ Found 47 Matter. 01078_ Acquired Enh. Optical Array. 01083_ System corrupted: Matter fused (-6). 01102_ System corrupted: Matter fused (-9). 01103_ Slammed into S-27 Virus. 01103_ Adv. Targeting Computer broken. 01103_ Destabilizing: Short circuit. 01104_ Slammed into S-27 Virus. 01106_ Y-54 Guardian: "INTERCEPTING UNREGISTERED DERELICT." Map ----- +----------------------------------------------------+ | ?????????????????????????????????????????????????? | | ?????????????????????????????????????????????????? | | ?????????????????????????????????????????????????? | | ?????????????????????????????????????????????????? | | ?????????????????????????????????????????????????? | | ?????????????????????????????????????????????????? | | ?????????????????????????????????????????????????? | | ?????????????????????????????????????????????????? | | ?????????????????????????????????????????????????? | | ?????????????????????????????????????????????????? | | ??????????????????????####???????????????????????? | | ????????????????????? #?????????????????????? | | #??????????????????? g #?????????????????????? | | #??????????????????? ##????????????????????? | | #???????????????????? ???????????????????? | | ##??????????????????? ???????????????????? | | #??????????????????? Y ???????????????????? | | #???????????????????? ????????????????????? | | ##??????????????????? s ?????????????????????? | | #??????####?????????# ??????????????????????? | | #?????## ##???????## ???????????????????????? | | #????## ###????## #???????????????????????? | | #????# ##???# ##??????????????????????? | | #????# #???# ##?????????????????????? | | ####### #????# s ##### #????????? | | ### ## ####### s @ #????????? | | ## s #?????????? | | s # #### ### #??????????? | | ############ ##?????????????????????? | | ## ## #?????????###??????????????????????? | | ?# ## ?????????????????????????????? | | ? ## ##????????????????????????????? | | ##### ##?????????????????????????????? | | ????# ##### #??????????????????????????????? | | ????# #???? ?????????????????????????????? | | ????## ##???? ???????????????????????????? | | ?????# #????? ???????????????????????????? | | ?????# #????? ???????????????????????????? | | ????? ?????# ????????????????????????????? | | ?????###??????## ????????????????????????????? | | ??????????????????#??????????????????????????????? | | ?????????????????????????????????????????????????? | | ?????????????????????????????????????????????????? | | ?????????????????????????????????????????????????? | | ?????????????????????????????????????????????????? | | ?????????????????????????????????????????????????? | | ?????????????????????????????????????????????????? | | ?????????????????????????????????????????????????? | | ?????????????????????????????????????????????????? | | ?????????????????????????????????????????????????? | +----------------------------------------------------+ Best States ------------- Heat Dissipation 34 Energy Generation 5 Energy Capacity 100 Matter Stores 300 Matter Capacity 300 Sight Range 16 Terrain Scan Density 210 Evasion (%) 50 Targeting Accuracy 8 Item Schematics ----------------- Adv. Focal Shield | -7/Data Miner | Free Adv. Coolant Injector | -7/Data Miner | Free Imp. Kinecellerator | -7/Data Miner | Free Imp. Focal Shield | -7/Data Miner | Free Imp. Actuator Array | -7/Data Miner | Free Imp. Corruption Screen | -7/Data Miner | Free Gui. EMP Blaster | -7/Data Miner | Free Gravity Neutralizer | -7/Data Miner | Free Biomechanical Wings | -7/Data Miner | Free Lgt. Regenerative Plating | -7/Data Miner | Free Combat Drone Bay | -7/Data Miner | Free Thunder Leg | -7/Data Miner | Free Hvy. Phase Cannon | -7/Data Miner | Free Robot Schematics ------------------ G-47 Trooper | -7/Data Miner | Free A-15 Conveyor | -7/Data Miner | Free W-25 Informer | -7/Data Miner | Free M-14 Sweeper | -7/Data Miner | Free S-27 Virus | -7/Data Miner | Free M-22 Extractor | -7/Data Miner | Free B-60 Warrior | -7/Data Miner | Free Fabricated ------------ Nothing Repaired ---------- Nothing Alien Tech Used ----------------- None Achievements -------------- The Oracle Challenges ------------ None Game ------ Seed PhysicsDeflectorNullifier Manual? 0 Play Time 00:24:51 Cumulative 9.9 hours Start 2025.08.09 @ 16:12:21 End 2025.08.09 @ 16:38:41 Sessions 1 Manual Loads 0 Difficulty Rogue Special Mode None Game No. 22 Rogue 22 Adventurer 0 Explorer 0 Win Type - Total 0 Types 0/0/0/0/0/0/0/0/0/0 Lore% 7 Gallery% 11 Achievement% 11 Wizard Run 0 Options --------- Layout 0 ASCII 0 Keyboard 0 Movement Arrows Keybinds 0 Fullscreen 1 Font 20/SmallcapsGlow Map View 66x50 Zoom Use 0% Tactical HUD 1 Map Filters NONE Filters NONE Steam 1 RUN: 15861e59-fd5e-450d-b3fb-ba4c58904f07